bitfinex/quotes_ETHUSD_20250725
["timestamp","ask_amount","ask_price","bid_price","bid_amount"]
[1753468203667,1e-08,3651.7,3651.6,15.43100552]
[1753468204050,1e-08,3651.7,3651.6,15.43000552]
[1753468204964,1e-08,3651.7,3651.6,2.87532557]
[1753468204965,0.94510001,3651.7,3651.6,2.87532557]
[1753468205135,0.94510001,3651.7,3651.6,7.17732557]
[1753468205330,0.94510001,3651.7,3651.6,2.87532557]
[1753468205632,0.94510001,3651.7,3651.6,7.17732557]
[1753468207868,0.46080001,3651.7,3651.6,7.17632557]
[1753468211143,1e-08,3651.7,3651.6,2.87532557]
[1753468211362,0.94510001,3651.7,3651.6,4.4378]
[1753468211565,0.94510001,3651.7,3651.6,7.17632557]
[1753468212156,0.46080001,3651.7,3651.6,7.17632557]
[1753468212785,0.94510001,3651.7,3651.6,4.4378]
[1753468212947,0.94510001,3651.7,3651.6,4.4388]
[1753468213148,1e-08,3651.7,3651.6,7.17732557]
[1753468213343,1e-08,3651.7,3651.6,15.43425611]
[1753468213558,1e-08,3651.7,3651.6,16.20065611]
[1753468214652,1e-08,3651.7,3651.6,19.75065611]
[1753468217291,1e-08,3651.7,3651.6,8.1513231]
[1753468217483,1e-08,3651.7,3651.6,4.6813231]
[1753468217683,1e-08,3651.7,3651.6,8.9803231]
[1753468218384,1e-08,3651.7,3651.6,9.4503231]
[1753468218767,1e-08,3651.7,3651.6,8.2139231]
[1753468218966,1e-08,3651.7,3651.6,3.9149231]
[1753468219177,1e-08,3651.7,3651.6,8.2129231]
[1753468219758,1e-08,3651.7,3651.6,8.6829231]
[1753468220168,1e-08,3651.7,3651.6,8.2129231]
[1753468221084,1e-08,3651.7,3651.6,3.9149231]
[1753468221395,1e-08,3651.7,3651.6,8.7110231]
[1753468225462,1e-08,3651.7,3651.6,4.4130231]
[1753468225670,1e-08,3651.7,3651.6,8.73740835]
[1753468225888,1e-08,3651.7,3651.6,8.7100231]
[1753468226294,1e-08,3651.7,3651.6,8.2119231]
[1753468226491,1e-08,3651.7,3651.6,3.9149231]
[1753468226693,0.44480001,3651.7,3651.6,2.87632557]
[1753468226874,0.94480001,3651.7,3651.6,7.17232557]
[1753468227069,0.94480001,3651.7,3651.6,0.1378]
[1753468227351,0.94480001,3651.7,3651.6,4.4338]
[1753468229208,0.94480001,3651.7,3651.6,7.17232557]
[1753468229392,0.44480001,3651.7,3651.6,7.17232557]
[1753468234705,0.44480001,3651.7,3651.6,7.17032557]
[1753468236323,1e-08,3651.7,3651.6,0.1378]
[1753468236499,0.94480001,3651.7,3651.6,0.1378]
[1753468236817,2.17182018,3651.7,3651.6,0.001]
[1753468237015,1.72620001,3651.7,3651.6,0.001]
[1753468237785,1.72620001,3651.7,3651.6,2.73952557]
[1753468237786,0.78140001,3651.7,3651.6,2.73952557]
[1753468238121,0.78140001,3651.7,3651.6,0.1378]
[1753468238319,1.22620001,3651.7,3651.6,0.1378]
[1753468239718,1.22620001,3651.7,3651.6,2.87632557]
[1753468241025,1.22620001,3651.7,3651.6,0.1378]
[1753468241723,1.72620001,3651.7,3651.6,0.1378]
[1753468241908,1.72620001,3651.7,3651.6,0.001]
[1753468241909,5.18494117,3651.7,3651.6,0.001]
[1753468242102,4.46465059,3651.7,3651.6,0.001]
[1753468242701,5.01465059,3651.7,3651.6,0.001]
[1753468242901,8.01465059,3651.7,3651.6,0.001]
[1753468244423,12.30665059,3651.7,3651.6,0.001]
[1753468244899,10.70077625,3651.7,3651.6,0.001]
[1753468245101,9.01820001,3651.7,3651.6,0.001]
[1753468245302,7.79200001,3651.7,3651.6,0.001]
[1753468245501,3.50000001,3651.7,3651.6,0.001]
[1753468245703,3.94480001,3651.7,3651.6,0.001]
[1753468247000,3.44480001,3651.7,3651.6,0.001]
[1753468247729,3.00000001,3651.7,3651.6,0.001]
[1753468250608,1e-08,3651.7,3651.6,3.23352557]
[1753468250824,1e-08,3651.7,3651.6,4.38435781]
[1753468254949,1e-08,3651.7,3651.6,0.001]
[1753468255118,1.20830001,3651.7,3651.6,0.001]
[1753468255317,1.70370001,3651.7,3651.6,0.001]
[1753468256343,1.20830001,3651.7,3651.6,0.001]
[1753468256757,3.94675059,3651.7,3651.6,0.001]
[1753468256914,4.44215059,3651.7,3651.6,0.001]
[1753468259164,5.58909679,3651.7,3651.6,0.001]
[1753468259532,2.85064621,3651.7,3651.6,0.001]
[1753468259841,1.70370001,3651.7,3651.6,0.001]
[1753468260468,1.20830001,3651.7,3651.6,0.001]
[1753468260875,1.20830001,3651.7,3651.6,3.23352557]
[1753468260876,1e-08,3651.7,3651.6,3.23352557]
[1753468261175,1e-08,3651.7,3651.6,3.69532557]
[1753468261334,1e-08,3651.7,3651.6,4.35239971]
[1753468263360,1e-08,3651.7,3651.6,1.61387414]
[1753468263559,1e-08,3651.7,3651.6,0.495]
[1753468264331,1e-08,3651.7,3651.6,3.23352557]
[1753468264661,1e-08,3651.7,3651.6,3.69532557]
[1753468267963,1e-08,3651.7,3651.6,0.9568]
[1753468268171,2.99380001,3652.0,3651.6,0.9568]
[1753468268349,2.99380001,3652.0,3651.7,0.494]
[1753468268551,2.99380001,3652.0,3651.9,0.1368]
[1753468269432,5.73202563,3652.0,3651.9,0.1368]
[1753468269668,2.99380001,3652.0,3651.9,0.1368]
[1753468270040,2.73830061,3651.9,3651.6,0.001]
[1753468270239,3.52947559,3651.8,3651.7,0.1368]
[1753468270439,4.47537559,3651.8,3651.7,0.1368]
[1753468270834,1.737,3651.8,3651.7,0.1368]
[1753468271042,1.2416,3651.8,3651.7,0.1368]
[1753468271658,3.97997559,3651.8,3651.7,0.1368]
[1753468274181,8.26397559,3651.8,3651.7,0.1368]
[1753468274375,5.5256,3651.8,3651.7,0.1368]
[1753468274682,8.26397559,3651.8,3651.7,0.1368]
[1753468277254,8.26597559,3651.8,3651.7,0.1368]
[1753468278793,5.5276,3651.8,3651.7,0.1368]
[1753468279492,4.286,3651.8,3651.7,0.1368]
[1753468280445,4.7298,3651.8,3651.7,0.1368]
[1753468280989,7.46817559,3651.8,3651.7,0.1368]
[1753468281986,4.7298,3651.8,3651.7,0.1368]
[1753468282982,7.46817559,3651.8,3651.7,0.1368]
[1753468283185,4.7298,3651.8,3651.7,0.1368]
[1753468283488,7.46817559,3651.8,3651.7,0.1368]
[1753468284257,4.7298,3651.8,3651.7,0.1368]
[1753468284668,4.286,3651.8,3651.7,0.1368]
[1753468285394,4.286,3651.8,3651.7,0.6063]
[1753468286414,0.002,3651.8,3651.7,0.1368]
[1753468286554,0.002,3651.8,3651.7,10.39741481]
[1753468286920,0.002,3651.8,3651.7,11.18281481]
[1753468287223,0.002,3652.3,3652.2,2.73807568]
[1753468287495,0.002,3652.3,3652.2,14.10460938]
[1753468287793,0.002,3652.3,3652.2,15.17380938]
[1753468287992,0.002,3652.3,3652.2,16.96500659]
[1753468296560,0.002,3652.3,3652.2,12.68600659]
[1753468296856,0.002,3652.3,3652.2,16.96200659]
[1753468297019,0.002,3652.3,3652.2,12.68600659]
[1753468297221,0.002,3652.3,3652.2,16.96100659]
[1753468297616,0.002,3652.5,3652.3,2.73800071]
[1753468297922,0.002,3653.0,3652.3,2.73800071]
[1753468297923,0.002,3653.0,3652.9,2.73755098]
[1753468298138,0.002,3653.0,3652.9,14.30046018]
[1753468298334,0.002,3653.0,3652.9,15.20548468]
[1753468298645,0.002,3653.3,3653.1,3.52030111]
[1753468298847,0.002,3653.3,3653.1,7.82267512]
[1753468299051,0.002,3653.3,3653.1,9.71157709]
[1753468299873,0.002,3653.2,3653.1,10.84764402]
[1753468303359,0.7615,3654.3,3653.1,10.84764402]
[1753468303360,0.002,3654.7,3654.6,2.73627756]
[1753468303564,0.002,3654.7,3654.6,7.00927756]
[1753468304057,0.4458,3654.7,3654.6,7.00827756]
[1753468305042,0.002,3654.7,3654.6,2.73627756]
[1753468305252,0.002,3654.7,3654.6,7.00827756]
[1753468306956,0.002,3654.7,3654.6,7.00727756]
[1753468308645,0.002,3654.7,3654.6,7.66418345]
[1753468309691,0.002,3654.7,3654.6,3.39318345]
[1753468310010,0.002,3654.7,3654.6,7.66318345]
[1753468310592,0.002,3654.7,3654.6,0.65690589]
[1753468310745,0.9142,3654.7,3654.0,1.2949]
[1753468310943,0.9122,3654.6,3654.1,4.27]
[1753468311148,0.4585,3654.5,3654.4,2.73637525]
[1753468311375,0.4585,3654.5,3654.4,7.00637525]
[1753468311682,0.002,3654.7,3654.6,2.73627756]
[1753468311882,0.002,3654.7,3654.6,7.00627756]
[1753468312292,0.002,3654.7,3654.6,7.50607756]
[1753468312454,0.002,3654.7,3654.6,7.00627756]
[1753468313288,0.9142,3654.7,3654.5,4.269]
[1753468313486,0.002,3654.7,3654.6,0.1368]
[1753468313641,0.002,3654.7,3654.6,2.90044033]
[1753468313999,0.002,3654.7,3654.6,4.57121975]
[1753468314292,0.9142,3654.7,3654.6,2.87307756]
[1753468314441,0.9142,3654.7,3654.6,0.1368]
[1753468314882,0.9142,3654.7,3654.6,4.4048]
[1753468316342,0.9142,3654.7,3654.6,0.1368]
[1753468316643,1.63331015,3654.7,3654.6,0.1368]
[1753468317172,0.9142,3654.7,3654.6,0.1368]
[1753468318178,0.4605,3654.7,3654.6,0.1368]
[1753468318492,0.9142,3654.7,3654.6,0.1368]
[1753468318978,0.002,3654.7,3654.6,2.87307756]
[1753468319292,0.002,3654.7,3654.6,8.09787756]
[1753468319801,0.002,3654.7,3654.6,7.63987756]
[1753468319942,0.002,3654.7,3654.6,16.1929887]
[1753468321565,0.002,3654.7,3654.6,11.9259887]
[1753468321895,0.9142,3654.7,3654.6,4.4038]
[1753468324004,0.4605,3654.7,3654.6,4.4038]
[1753468324221,0.9142,3654.7,3654.6,0.1368]
[1753468324508,0.9142,3654.7,3654.0,0.001]
[1753468324509,0.8003,3654.6,3654.5,0.1368]
[1753468324706,4.44878066,3654.6,3654.5,0.1368]
[1753468325070,8.16747803,3654.6,3654.5,0.1368]
[1753468325300,2.73657888,3654.2,3654.1,4.266]
[1753468325599,3.19027888,3654.2,3654.1,4.266]
[1753468325792,0.9122,3654.2,3654.1,4.4028]
[1753468326395,3.64877708,3654.2,3654.1,4.4028]
[1753468326706,2.73665197,3654.1,3654.0,0.001]
[1753468326875,0.9122,3654.1,3654.0,0.001]
[1753468327075,3.64885197,3654.1,3654.0,0.001]
[1753468327626,0.9122,3654.1,3654.0,0.001]
[1753468328092,3.64885197,3654.1,3654.0,0.001]
[1753468328415,3.9258312,3654.1,3654.0,0.001]
[1753468332207,4.7014312,3654.1,3654.0,0.001]
[1753468332408,4.8382312,3654.1,3654.0,0.001]
[1753468332773,5.3882312,3654.1,3654.0,0.001]
[1753468332979,8.3882312,3654.1,3654.0,0.001]
[1753468335693,12.6532312,3654.1,3654.0,0.001]
[1753468337603,12.1995312,3654.1,3654.0,0.001]
[1753468337781,3.9124,3654.1,3654.0,0.001]
[1753468337978,3.7756,3654.1,3654.0,0.5008]
[1753468338212,6.51225197,3654.1,3654.0,0.5008]
[1753468338397,0.1368,3654.3,3654.0,0.001]
[1753468339187,2.73665197,3654.1,3654.0,0.001]
[1753468339682,4.265,3654.2,3654.0,0.001]
[1753468339882,4.265,3654.2,3654.0,0.5008]
[1753468340215,2.73665197,3654.1,3654.0,0.001]
[1753468341516,7.00159793,3654.2,3654.0,0.485]
[1753468342022,7.00159793,3654.2,3654.0,0.001]
[1753468342316,4.265,3654.2,3654.1,0.6208]
[1753468344823,7.00157708,3654.2,3654.1,0.6208]
[1753468345025,7.00157708,3654.2,3654.1,0.1368]
[1753468345684,4.265,3654.2,3654.1,0.1368]
[1753468346917,4.265,3654.2,3654.1,0.6208]
[1753468347116,4.265,3654.2,3654.1,0.1368]
[1753468347645,4.265,3654.2,3654.1,0.6208]
[1753468348183,4.265,3654.2,3654.1,1.0498]
[1753468349422,4.265,3654.2,3654.1,0.6208]
[1753468349624,7.44917708,3654.2,3654.0,0.001]
[1753468349808,5.79851908,3654.1,3654.0,0.001]
[1753468350697,6.97501908,3654.1,3654.0,0.001]
[1753468350926,9.97501908,3654.1,3654.0,0.001]
[1753468351227,10.99251908,3654.1,3654.0,0.001]
[1753468351825,2.7365022,3654.3,3654.0,0.001]
[1753468352026,4.262,3654.2,3654.0,0.485]
[1753468352230,2.73665197,3654.1,3654.0,0.001]
[1753468352599,3.18425197,3654.1,3654.0,0.001]
[1753468353551,3.65175197,3654.1,3654.0,0.001]
[1753468353749,5.19485749,3654.1,3654.0,0.001]
[1753468357997,4.72735749,3654.1,3654.0,0.001]
[1753468360661,6.37135749,3654.1,3654.0,0.001]
[1753468360870,4.38065197,3654.1,3654.0,0.001]
[1753468361026,4.38065197,3654.1,3654.0,0.485]
[1753468361223,4.38065197,3654.1,3654.0,0.001]
[1753468361444,4.26,3654.1,3654.0,0.914]
[1753468361756,4.26,3654.1,3654.0,1.0508]
[1753468362530,2.7365232,3654.3,3654.0,0.6218]
[1753468362734,4.26,3654.2,3654.1,0.484]
[1753468363049,4.26,3654.2,3654.1,0.429]
[1753468363248,4.26,3654.2,3654.0,0.1378]
[1753468363567,6.99660528,3654.2,3654.1,0.484]
[1753468363948,6.99660528,3654.2,3654.0,0.1378]
[1753468363949,2.73665197,3654.1,3654.0,0.1378]
[1753468364323,6.99660549,3654.2,3654.0,0.1378]
[1753468364560,2.73665197,3654.1,3654.0,0.1378]
[1753468365055,6.99660632,3654.2,3654.0,0.1378]
[1753468365253,4.26,3654.2,3654.0,1.0508]
[1753468365432,4.26,3654.2,3654.0,0.6218]
[1753468365637,3.002,3654.7,3654.1,1.6742]
[1753468365855,4.259,3654.6,3654.2,2.73657095]
[1753468366058,4.259,3654.6,3654.2,2.87337095]
[1753468366360,4.259,3654.6,3654.3,0.913]
[1753468366661,4.259,3654.6,3654.4,0.1368]
[1753468366952,7.259,3654.6,3654.5,0.484]
[1753468368333,4.259,3654.6,3654.5,0.484]
[1753468368567,4.259,3654.6,3654.5,0.913]
[1753468368749,0.002,3654.7,3654.6,3.55347756]
[1753468369059,0.002,3654.7,3654.6,4.46647756]
[1753468369356,0.002,3654.7,3654.6,4.60327756]
[1753468370336,0.002,3654.7,3654.6,0.954]
[1753468370534,0.002,3654.7,3654.6,0.6325]
[1753468371471,0.002,3654.7,3654.6,0.1368]
[1753468371636,5.9591,3654.7,3654.3,0.1368]
[1753468371837,2.73641184,3654.5,3654.1,0.1368]
[1753468372038,6.99441184,3654.5,3654.1,0.1368]
[1753468372267,6.99441184,3654.5,3654.1,0.6325]
[1753468372467,2.7364332,3654.4,3654.1,0.6325]
[1753468372839,4.258,3654.5,3654.1,0.1368]
[1753468373034,0.4699,3654.4,3654.1,0.1368]
[1753468373276,6.9943705,3654.5,3654.1,0.6325]
[1753468373774,4.258,3654.5,3654.1,0.1368]
[1753468374007,4.258,3654.5,3654.2,0.9327]
[1753468374287,4.258,3654.5,3654.4,0.1368]
[1753468374582,4.259,3654.7,3654.4,1.0695]
[1753468374784,4.259,3654.7,3654.5,0.4957]
[1753468374985,4.259,3654.7,3654.4,0.5738]
[1753468375190,7.259,3654.7,3654.6,0.4957]
[1753468376676,7.259,3654.7,3654.4,0.1368]
[1753468376877,7.7289,3654.7,3654.4,0.6325]
[1753468377080,7.7289,3654.7,3654.4,0.1368]
[1753468377296,3.66029035,3654.6,3654.0,0.001]
[1753468377572,2.73665197,3654.1,3654.0,0.001]
[1753468377862,8.77345197,3654.1,3654.0,0.001]
[1753468378265,9.69745197,3654.1,3654.0,0.001]
[1753468378470,11.01852378,3654.1,3654.0,0.001]
[1753468378656,14.56852378,3654.1,3654.0,0.001]
[1753468379167,15.37292378,3654.1,3654.0,0.001]
[1753468380594,11.11692378,3654.1,3654.0,0.001]
[1753468380796,7.3928,3654.1,3654.0,0.4967]
[1753468381092,9.99265197,3654.1,3654.0,0.4967]
[1753468381390,9.99265197,3654.1,3654.0,0.001]
[1753468381391,10.46255197,3654.1,3654.0,0.001]
[1753468381585,11.60345197,3654.1,3654.0,0.001]
[1753468381785,11.14935197,3654.1,3654.0,0.001]
[1753468382190,10.67945197,3654.1,3654.0,0.001]
[1753468382482,9.99265197,3654.1,3654.0,0.4967]
[1753468382660,9.99265197,3654.1,3654.0,0.001]
[1753468383495,5.73665197,3654.1,3654.0,0.001]
[1753468383701,9.99265197,3654.1,3654.0,0.001]
[1753468387298,13.63006812,3654.1,3654.0,0.001]
[1753468387997,14.45356812,3654.1,3654.0,0.001]
[1753468388706,16.09756812,3654.1,3654.0,0.001]
[1753468388903,4.10095125,3653.3,3653.2,0.001]
[1753468389069,13.54684637,3653.3,3653.2,0.001]
[1753468389273,14.47084637,3653.3,3653.2,0.001]
[1753468390390,14.01674637,3653.3,3653.2,0.001]
[1753468391593,14.47084637,3653.3,3653.2,0.001]
[1753468395609,13.54584637,3653.3,3653.2,0.001]
[1753468396088,14.01574637,3653.3,3653.2,0.001]
[1753468396291,14.46984637,3653.3,3653.2,0.001]
[1753468398806,9.29184637,3653.3,3653.2,0.001]
[1753468398982,13.54584637,3653.3,3653.2,0.001]
[1753468399417,11.08814637,3653.3,3653.2,0.4967]
[1753468399722,7.254,3653.3,3653.2,0.9337]
[1753468399923,7.254,3653.3,3653.2,1.7172]
[1753468401886,4.253,3653.3,3653.2,4.45452392]
[1753468402096,0.1368,3653.7,3653.2,4.45452392]
[1753468402300,4.253,3653.6,3653.3,4.08813528]
[1753468402496,2.73685268,3653.9,3653.5,0.1368]
[1753468402766,4.253,3653.8,3653.5,0.1368]
[1753468402889,4.253,3653.8,3653.6,0.8918]
[1753468403087,4.253,3653.8,3653.5,0.1368]
[1753468403321,4.253,3653.8,3653.7,0.8918]
[1753468404713,6.98987667,3653.8,3653.7,0.8918]
[1753468405122,6.98987667,3653.8,3653.7,0.464]
[1753468405580,2.73702649,3653.6,3653.5,0.1368]
[1753468405786,2.7371693,3653.5,3653.2,0.7845]
[1753468406100,4.253,3653.4,3653.3,0.464]
[1753468406710,3.0,3654.1,3653.3,0.464]
[1753468406888,2.73685211,3653.9,3653.3,3.20120503]
[1753468407084,6.98892158,3653.8,3653.4,0.464]
[1753468407289,6.98896281,3653.7,3653.4,0.6008]
[1753468407619,2.73702649,3653.6,3653.4,0.6008]
[1753468407921,6.9891014,3653.5,3653.4,0.6008]
[1753468408097,6.9891014,3653.5,3653.4,0.464]
[1753468408418,4.252,3653.5,3653.4,0.464]
[1753468409593,6.9891014,3653.5,3653.3,0.1368]
[1753468409785,4.252,3653.5,3653.2,0.7845]
[1753468409987,4.252,3653.5,3653.3,0.464]
[1753468410620,4.252,3653.5,3653.2,0.7845]
[1753468410797,4.252,3653.5,3653.4,0.464]
[1753468410998,6.9891014,3653.5,3653.4,0.464]
[1753468413317,4.252,3653.5,3653.4,0.464]
[1753468413511,6.9891014,3653.5,3653.4,0.464]
[1753468413684,2.73720957,3653.4,3653.2,0.001]
[1753468413889,4.251,3653.3,3653.2,0.465]
[1753468414090,4.251,3653.3,3653.2,0.001]
[1753468414620,4.251,3653.3,3653.2,0.465]
[1753468416200,4.251,3653.3,3653.2,0.8928]
[1753468416597,0.13956342,3654.2,3653.2,0.8928]
[1753468416920,3.0,3654.0,3653.9,0.1368]
[1753468417117,5.73672687,3654.0,3653.9,0.1368]
[1753468417495,3.0,3654.0,3653.9,0.1368]
[1753468417714,5.73672687,3654.0,3653.9,0.1368]
[1753468417918,7.82044423,3654.0,3653.9,0.1368]
[1753468418319,7.38864423,3654.0,3653.9,0.1368]
[1753468418749,8.37044423,3654.0,3653.9,0.1368]
[1753468418906,8.37044423,3654.0,3653.2,0.465]
[1753468418907,5.194,3653.7,3653.2,0.001]
[1753468419105,7.93125125,3653.3,3653.2,0.001]
[1753468419309,15.21103111,3653.3,3653.2,0.001]
[1753468419547,16.12973111,3653.3,3653.2,0.001]
[1753468424667,16.28336735,3653.3,3653.2,0.001]
[1753468425028,16.53942784,3653.3,3653.2,0.001]
[1753468427168,16.3857916,3653.3,3653.2,0.001]
[1753468427330,16.53933087,3653.3,3653.2,0.001]
[1753468428243,16.53933087,3653.3,3653.2,1e-08]
[1753468430062,23.59933087,3653.3,3653.2,1e-08]
[1753468430265,19.34928483,3653.3,3653.2,1e-08]
[1753468430444,23.59728483,3653.3,3653.2,1e-08]
[1753468436304,23.59695953,3653.3,3653.2,1e-08]
[1753468438596,5.73107583,3652.6,3652.5,0.001]
[1753468438788,13.68798341,3652.6,3652.5,0.001]
[1753468438993,20.74798341,3652.6,3652.5,0.001]
[1753468439310,21.20828341,3652.6,3652.5,0.001]
[1753468439509,7.93185078,3652.5,3652.4,0.001]
[1753468439715,14.99185078,3652.5,3652.4,0.001]
[1753468439916,16.47388359,3652.5,3652.4,0.001]
[1753468440086,7.38215065,3652.1,3652.0,0.4677]
[1753468440278,7.38215065,3652.1,3651.8,0.464]
[1753468440279,7.38230061,3651.9,3651.8,0.4687]
[1753468440473,11.76610061,3651.9,3651.8,0.001]
[1753468441112,12.31610061,3651.9,3651.8,0.001]
[1753468441282,20.66570648,3651.9,3651.8,0.001]
[1753468441639,20.66570648,3651.9,3650.3,0.4687]
[1753468441640,8.69015064,3650.9,3650.3,0.4687]
[1753468441914,8.69015064,3650.9,3650.6,0.4677]
[1753468441915,16.13909266,3650.9,3650.6,0.4677]
[1753468442097,26.96009266,3650.9,3650.8,0.4687]
[1753468442417,27.42039266,3650.9,3650.8,0.001]
[1753468442810,26.96009266,3650.9,3650.8,0.001]
[1753468443199,29.74047119,3650.9,3650.8,0.001]
[1753468443404,6.33691128,3650.9,3650.8,0.001]
[1753468443723,16.017,3650.9,3650.8,0.9317]
[1753468444022,18.75605064,3650.9,3650.8,0.001]
[1753468444193,19.58125064,3650.9,3650.8,0.001]
[1753468444390,19.58125064,3650.9,3650.8,0.4687]
[1753468444591,21.4551424,3650.9,3650.8,0.4687]
[1753468444821,21.4551424,3650.9,3650.8,0.9317]
[1753468445028,13.91909176,3650.9,3650.8,0.9317]
[1753468445203,15.467,3650.9,3650.8,0.9317]
[1753468445532,16.017,3650.9,3650.8,0.9317]
[1753468445726,3.0,3650.9,3650.8,0.9317]
[1753468445889,6.576,3651.7,3650.9,0.752]
[1753468446088,3.0,3651.6,3651.0,0.9307]
[1753468446407,0.55,3651.5,3651.1,0.9307]
[1753468446607,3.55,3651.3,3650.9,0.752]
[1753468446812,4.247,3651.2,3651.0,0.9307]
[1753468447009,4.247,3651.2,3651.1,0.9307]
[1753468447213,4.247,3651.2,3650.9,3.49104399]
[1753468447414,7.46738751,3651.7,3651.1,0.9307]
[1753468447415,6.576,3651.7,3651.1,0.9307]
[1753468447585,7.247,3651.6,3651.2,0.7884]
[1753468447921,7.247,3651.6,3651.3,0.9307]
[1753468448122,7.247,3651.6,3651.4,0.9307]
[1753468448290,7.797,3651.6,3651.5,0.9307]
[1753468450105,7.797,3651.6,3651.5,0.4677]
[1753468450634,7.797,3651.6,3651.5,0.9307]
[1753468452230,7.797,3651.6,3651.5,0.9317]
[1753468452534,3.55,3651.6,3651.5,0.9317]
[1753468452720,7.796,3651.6,3651.5,0.9317]
[1753468453309,8.58928,3651.6,3651.5,0.9317]
[1753468454851,8.58928,3651.6,3651.5,0.4687]
[1753468455547,10.23328,3651.6,3651.5,0.4687]
[1753468456728,10.69358,3651.6,3651.5,0.001]
[1753468457050,28.18688927,3651.6,3651.5,0.001]
[1753468457644,30.92541484,3651.6,3651.5,0.001]
[1753468458511,31.07885327,3651.6,3651.5,0.001]
[1753468458707,30.47001484,3651.6,3651.5,0.001]
[1753468458907,31.0788526,3651.6,3651.5,0.001]
[1753468459343,26.8328526,3651.6,3651.5,0.001]
[1753468459540,37.6548526,3651.6,3651.5,0.001]
[1753468461148,15.10880927,3650.9,3650.8,0.001]
[1753468461448,19.49060927,3650.9,3650.8,0.001]
[1753468461749,20.41960927,3650.9,3650.8,0.001]
[1753468461925,23.15865991,3650.9,3650.8,0.001]
[1753468462539,22.69875991,3650.9,3650.8,0.001]
[1753468462749,20.32092576,3650.9,3650.8,0.001]
[1753468463052,14.65111649,3650.9,3650.8,0.9043]
[1753468463354,14.65111649,3650.9,3650.8,0.4726]
[1753468465377,14.65111649,3650.9,3650.8,0.001]
[1753468465556,15.12021649,3650.9,3650.8,0.001]
[1753468466062,24.20662576,3650.9,3650.8,0.001]
[1753468466219,24.36008079,3650.9,3650.8,0.001]
[1753468467331,23.89098079,3650.9,3650.8,0.001]
[1753468467527,24.36008079,3650.9,3650.8,0.001]
[1753468467732,25.19060267,3650.9,3650.8,0.001]
[1753468468260,25.38412916,3650.9,3650.8,0.001]
[1753468469373,24.08452916,3650.9,3650.8,0.001]
[1753468471078,19.83952916,3650.9,3650.8,0.001]
[1753468471376,24.08452916,3650.9,3650.8,0.4726]
[1753468471574,31.14452916,3650.9,3650.8,0.4726]
[1753468471731,31.14452916,3650.9,3650.8,0.001]
[1753468472565,19.02681338,3650.9,3650.8,0.9043]
[1753468472736,19.57681338,3650.9,3650.8,0.9043]
[1753468474632,19.37385064,3650.9,3650.8,0.9043]
[1753468475037,19.37385064,3650.9,3650.8,0.4726]
[1753468475237,11.99305064,3650.9,3650.8,0.9043]
[1753468475557,15.68705064,3650.9,3650.8,0.9043]
[1753468475938,18.68705064,3650.9,3650.8,0.9043]
[1753468477756,11.704,3650.9,3650.8,0.9043]
[1753468477957,15.947,3650.9,3650.8,0.9043]
[1753468478290,11.704,3650.9,3650.8,0.9043]
[1753468478473,10.06,3650.9,3650.8,1.89301]
[1753468478790,14.303,3650.9,3650.8,1.89301]
[1753468478946,14.303,3650.9,3650.8,1.7111]
[1753468479342,17.04205064,3650.9,3650.8,1.7111]
[1753468479582,17.04205064,3650.9,3650.8,1.2794]
[1753468480890,19.23605064,3650.9,3650.8,0.4726]
[1753468481047,19.23605064,3650.9,3650.8,0.001]
[1753468481453,21.50767668,3650.9,3650.8,0.001]
[1753468482052,21.97677668,3650.9,3650.8,0.001]
[1753468482392,21.50767668,3650.9,3650.8,0.001]
[1753468482685,21.97677668,3650.9,3650.8,0.001]
[1753468482859,2.73912567,3650.8,3650.7,0.001]
[1753468483060,11.36091431,3650.8,3650.7,0.001]
[1753468483371,11.51461331,3650.8,3650.7,0.001]
[1753468486286,18.57461331,3650.8,3650.7,0.001]
[1753468487090,18.57461331,3650.8,3650.7,1e-08]
[1753468487295,5.194,3650.6,3650.3,0.001]
[1753468487588,14.27767406,3650.4,3650.3,0.001]
[1753468487747,15.18887306,3650.4,3650.3,0.001]
[1753468487952,16.11787306,3650.4,3650.3,0.001]
[1753468488179,20.99910847,3650.4,3650.3,1e-08]
[1753468488380,20.53920847,3650.4,3650.3,1e-08]
[1753468488589,24.15840947,3650.4,3650.3,1e-08]
[1753468488975,24.62750947,3650.4,3650.3,1e-08]
[1753468489577,19.15890947,3650.4,3650.3,1e-08]
[1753468489777,23.55483258,3650.4,3650.3,0.47160001]
[1753468489964,23.55483258,3650.4,3650.3,1e-08]
[1753468490158,23.99623258,3650.4,3650.3,1e-08]
[1753468492165,31.05623258,3650.4,3650.3,1e-08]
[1753468492390,30.61383258,3650.4,3650.3,1e-08]
[1753468493089,30.75063258,3650.4,3650.3,1e-08]
[1753468493760,30.75063258,3650.4,3650.3,0.47120001]
[1753468494164,33.08863258,3650.4,3650.3,0.47120001]
[1753468494367,37.3295109,3650.4,3650.3,0.47120001]
[1753468495696,33.0885109,3650.4,3650.3,0.47120001]
[1753468495997,37.3295109,3650.4,3650.3,0.47120001]
[1753468497267,34.55694098,3650.4,3650.3,0.47120001]
[1753468498493,30.31594098,3650.4,3650.3,0.47120001]
[1753468498695,34.55594098,3650.4,3650.3,1e-08]
[1753468499994,35.48664098,3650.4,3650.3,1e-08]
[1753468500362,34.55594098,3650.4,3650.3,1e-08]
[1753468500566,34.55585635,3650.4,3650.3,1e-08]
[1753468500983,30.31585635,3650.4,3650.3,1e-08]
[1753468501402,34.55585635,3650.4,3650.3,1e-08]
[1753468502501,34.55585635,3650.4,3650.3,0.47120001]